[Event "FIDE WYCC Girls U14 2023"]
[Site "Montesilvano"]
[Date "2023.11.20"]
[Round "7.32"]
[White "Huang, Jolie"]
[Black "Alemanova, Yasmina"]
[Result "*"]
[WhiteElo "1680"]
[BlackElo "1570"]
[Annotator "NA COMBH"]
[PlyCount "91"]
[EventDate "2023.11.13"]
[EventType "swiss"]
[EventCountry "ITA"]
[SourceTitle "playchess.com"]
[Source "ChessBase"]
[SourceQuality "1"]
[TimeControl "40/5400+30:1800+30"]

1. d4 {[%emt 0:00:04]} Nf6 {[%emt 0:00:04]} 2. c4 {[%emt 0:00:09]} e6 {[%emt 0:00:03]} 3. Nf3 {[%emt 0:00:11]} b6 {[%emt 0:00:05]} 4. e3 {[%emt 0:00:17]} Bb7 {[%emt 0:00:04]} 5. Bd3 {[%emt 0:00:23]} d5 {[%emt 0:00:10]} 6. O-O {[%emt 0:00:33]} Bd6 {[%emt 0:00:02]} 7. b3 {[%emt 0:00:24]} O-O {[%emt 0:00:07]} 8. Bb2 {[%emt 0:00:16]} Nbd7 {[%emt 0:00:30]} 9. Nbd2 {[%emt 0:02:29]} Ne4 {[%emt 0:00:16]} 10. Rc1 {[%emt 0:02:58]} Qe7 {[%emt 0:01:37]} 11. Qc2 {[%emt 0:03:02]} f5 {[%emt 0:00:15]} 12. Ne5 {[%emt 0:02:53]} Bxe5 {[%emt 0:07:01]} 13. dxe5 {[%emt 0:00:18]} Ndc5 {[%emt 0:00:03]} 14. Ba3 {[%emt 0:26:50]} Qg5 {[%emt 0:00:32]} 15. f4 {[%emt 0:02:22]} Qg6 {[%emt 0:01:12]} 16. Bxe4 {[%emt 0:07:12]} dxe4 {[%emt 0:02:44]} 17. Bxc5 {[%emt 0:02:02]} bxc5 {[%emt 0:00:04]} 18. Rfd1 {[%emt 0:01:07]} Rfd8 {[%emt 0:01:15]} 19. Nb1 {[%emt 0:00:28]} Rd3 {[%emt 0:00:14]} 20. Rxd3 {[%emt 0:17:08]} exd3 {[%emt 0:00:05]} 21. Qf2 {[%emt 0:00:17]} Qg4 {[%emt 0:04:10]} 22. Nc3 {[%emt 0:01:03]} Be4 {[%emt 0:04:11]} 23. Rd1 {[%emt 0:03:30]} a5 {[%emt 0:00:55]} 24. Rd2 {[%emt 0:00:53]} Qg6 {[%emt 0:07:51]} 25. Na4 {[%emt 0:01:29]} Qe8 {[%emt 0:00:24]} 26. Nxc5 {[%emt 0:01:35]} Rd8 {[%emt 0:04:49]} 27. Na4 {[%emt 0:05:12]} Qe7 {[%emt 0:00:20]} 28. Rb2 {[%emt 0:06:05]} Bc6 {[%emt 0:05:40]} 29. Nc3 {[%emt 0:01:27]} Qc5 {[%emt 0:01:58]} 30. Qd2 {[%emt 0:01:53]} g5 {[%emt 0:01:10]} 31. Kf1 {[%emt 0:02:45]} gxf4 {[%emt 0:03:05]} 32. exf4 {[%emt 0:00:15]} Qd4 {[%emt 0:00:06]} 33. Nd1 {[%emt 0:02:10]} Qe4 {[%emt 0:02:41]} 34. Qe3 {[%emt 0:01:15]} Be8 {[%emt 0:05:17]} 35. Qxe4 {[%emt 0:00:19]} fxe4 {[%emt 0:00:04]} 36. Rd2 {[%emt 0:01:13]} Bh5 {[%emt 0:00:39]} 37. Kf2 {[%emt 0:01:58]} Bxd1 {[%emt 0:01:38]} 38. Rxd1 {[%emt 0:00:06]} c5 {[%emt 0:00:18]} 39. Ke3 {[%emt 0:00:54]} Rd4 {[%emt 0:00:07]} 40. Kd2 {[%emt 0:00:00]} h5 {[%emt 0:00:00]} 41. g3 {[%emt 0:12:48]} Kf7 {[%emt 0:03:15]} 42. h3 {[%emt 0:01:50]} a4 {[%emt 0:03:29]} 43. Kc3 {[%emt 0:05:08]} axb3 {[%emt 0:01:32]} 44. axb3 {[%emt 0:00:08]} Kg6 {[%emt 0:00:10]} 45. Kd2 {[%emt 0:08:28]} Kf5 {[%emt 0:02:05]} 46. Rf1 {[%emt 0:01:57]} *

[Event "FIDE WYCC Girls U14 2023"]
[Site "Montesilvano"]
[Date "2023.11.20"]
[Round "7.33"]
[White "Michalska, Lena"]
[Black "Arzur, Maia"]
[Result "1-0"]
[ECO "A20"]
[WhiteElo "1640"]
[BlackElo "1997"]
[Annotator "NA RC"]
[PlyCount "87"]
[EventDate "2023.11.13"]
[EventType "swiss"]
[EventCountry "ITA"]
[SourceTitle "playchess.com"]
[Source "ChessBase"]
[SourceQuality "1"]
[TimeControl "40/5400+30:1800+30"]

1. c4 {[%emt 0:00:01]} e5 {[%emt 0:00:21]} 2. g3 {[%emt 0:00:07]} Nf6 {[%emt 0:00:19]} 3. Bg2 {[%emt 0:00:08]} d5 {[%emt 0:00:19]} 4. cxd5 {[%emt 0:00:07]} Nxd5 {[%emt 0:00:16]} 5. Nc3 {[%emt 0:00:09]} Nb6 {[%emt 0:00:23]} 6. Nf3 {[%emt 0:01:42]} Nc6 {[%emt 0:00:17]} 7. d3 {[%emt 0:03:16]} Be7 {[%emt 0:01:09]} 8. O-O {[%emt 0:02:29]} O-O {[%emt 0:01:36]} 9. Be3 {[%emt 0:00:07]} Re8 {[%emt 0:00:58]} 10. d4 {[%emt 0:03:22]} exd4 {[%emt 0:02:57]} 11. Nxd4 {[%emt 0:00:11]} Nxd4 {[%emt 0:00:31]} 12. Qxd4 {[%emt 0:08:31]} c6 {[%emt 0:10:00]} 13. Rad1 {[%emt 0:09:32]} Be6 {[%emt 0:07:03]} 14. Qe4 {[%emt 0:04:25]} Qc8 {[%emt 0:02:57]} 15. Qc2 {[%emt 0:03:43]} Nc4 {[%emt 0:08:01]} 16. Bf4 {[%emt 0:03:03]} h6 {[%emt 0:03:56]} 17. Rfe1 {[%emt 0:03:19]} Bf8 {[%emt 0:05:37]} 18. b3 {[%emt 0:12:04]} Nb6 {[%emt 0:01:46]} 19. e4 {[%emt 0:05:34]} Bh3 {[%emt 0:04:56]} 20. Bh1 {[%emt 0:01:50]} Qe6 {[%emt 0:03:12]} 21. Ne2 {[%emt 0:05:34]} Bg4 {[%emt 0:08:13]} 22. Be3 {[%emt 0:08:13]} Bb4 {[%emt 0:03:26]} 23. Bd2 {[%emt 0:00:25]} Bd6 {[%emt 0:03:00]} 24. f3 {[%emt 0:03:17]} Bh5 {[%emt 0:05:38]} 25. Nf4 {[%emt 0:00:09]} Bxf4 {[%emt 0:01:32]} 26. Bxf4 {[%emt 0:00:07]} Bg6 {[%emt 0:02:06]} 27. Rd6 {[%emt 0:00:44]} Qe7 {[%emt 0:00:20]} 28. Red1 {[%emt 0:01:00]} Nd5 {[%emt 0:03:12]} 29. Qd2 {[%emt 0:08:03]} Nxf4 {[%emt 0:02:38]} 30. Qxf4 {[%emt 0:00:02]} Rad8 {[%emt 0:01:10]} 31. Bg2 {[%emt 0:01:08]} Rxd6 {[%emt 0:03:12]} 32. Qxd6 {[%emt 0:00:03]} Qg5 {[%emt 0:00:46]} 33. Qd7 {[%emt 0:02:25]} Qc5+ {[%emt 0:03:57]} 34. Kf1 {[%emt 0:01:24]} Rf8 {[%emt 0:02:31]} 35. Qxb7 {[%emt 0:03:15]} f5 {[%emt 0:03:09]} 36. e5 {[%emt 0:02:12]} f4 {[%emt 0:01:31]} 37. e6 {[%emt 0:02:01]} fxg3 {[%emt 0:00:44]} 38. hxg3 {[%emt 0:00:44]} Qe3 {[%emt 0:02:56]} 39. Qd7 {[%emt 0:02:49]} Rxf3+ {[%emt 0:02:32]} 40. Bxf3 {[%emt 0:00:00]} Qxf3+ {[%emt 0:00:00]} 41. Ke1 {[%emt 0:00:34]} Qe3+ {[%emt 0:12:28]} 42. Kf1 {[%emt 0:00:08]} Qf3+ {[%emt 0:06:11]} 43. Ke1 {[%emt 0:00:02]} Bh5 {[%emt 0:04:34]} 44. Qd8+ {[%emt 0:00:15]} 1-0

[Event "FIDE WYCC Girls U14 2023"]
[Site "Montesilvano"]
[Date "2023.11.20"]
[Round "7.34"]
[White "Kazhiakhmetova, Yerkenaz"]
[Black "Saparya Ghosh"]
[Result "1-0"]
[ECO "E48"]
[WhiteElo "1218"]
[BlackElo "1659"]
[Annotator "NA COMBH"]
[PlyCount "137"]
[EventDate "2023.11.13"]
[EventType "swiss"]
[EventCountry "ITA"]
[SourceTitle "playchess.com"]
[Source "ChessBase"]
[SourceQuality "1"]
[TimeControl "40/5400+30:1800+30"]

1. d4 {[%emt 0:00:04]} Nf6 {[%emt 0:00:12]} 2. c4 {[%emt 0:00:05]} e6 {[%emt 0:00:06]} 3. Nc3 {[%emt 0:00:07]} Bb4 {[%emt 0:00:18]} 4. e3 {[%emt 0:01:27]} O-O {[%emt 0:00:14]} 5. Bd3 {[%emt 0:01:24]} d5 {[%emt 0:00:43]} 6. Nf3 {[%emt 0:01:44]} Nbd7 {[%emt 0:00:58]} 7. O-O {[%emt 0:00:13]} c6 {[%emt 0:00:22]} 8. Bd2 {[%emt 0:04:28]} dxc4 {[%emt 0:01:49]} 9. Bxc4 {[%emt 0:00:22]} b5 {[%emt 0:00:25]} 10. Bd3 {[%emt 0:00:53]} a6 {[%emt 0:05:44]} 11. Ne4 {[%emt 0:20:37]} Be7 {[%emt 0:09:20]} 12. Nxf6+ {[%emt 0:01:01]} Nxf6 {[%emt 0:00:32]} 13. Qc2 {[%emt 0:06:39]} Bb7 {[%emt 0:02:56]} 14. Ng5 {[%emt 0:02:22]} g6 {[%emt 0:10:27]} 15. Ne4 {[%emt 0:01:34]} Nd7 {[%emt 0:01:35]} 16. Rfd1 {[%emt 0:08:39]} f5 {[%emt 0:11:04]} 17. Nc5 {[%emt 0:06:32]} Nxc5 {[%emt 0:00:58]} 18. dxc5 {[%emt 0:00:02]} Qc7 {[%emt 0:15:53]} 19. e4 {[%emt 0:06:33]} f4 {[%emt 0:02:30]} 20. Be2 {[%emt 0:03:02]} Rad8 {[%emt 0:11:53]} 21. b4 {[%emt 0:04:15]} Bc8 {[%emt 0:09:58]} 22. Bc3 {[%emt 0:02:29]} e5 {[%emt 0:03:16]} 23. Rxd8 {[%emt 0:00:27]} Rxd8 {[%emt 0:00:28]} 24. Rd1 {[%emt 0:00:05]} Re8 {[%emt 0:10:13]} 25. Rd2 {[%emt 0:02:28]} Kf7 {[%emt 0:00:33]} 26. Qd1 {[%emt 0:00:12]} Kf6 {[%emt 0:00:24]} 27. Bg4 {[%emt 0:00:24]} h5 {[%emt 0:00:35]} 28. Bxc8 {[%emt 0:00:50]} Qxc8 {[%emt 0:00:11]} 29. Qf3 {[%emt 0:02:04]} Qe6 {[%emt 0:00:35]} 30. Qxf4+ {[%emt 0:01:11]} Kg7 {[%emt 0:00:39]} 31. Qxe5+ {[%emt 0:02:34]} Qxe5 {[%emt 0:00:32]} 32. Bxe5+ {[%emt 0:00:04]} Kf7 {[%emt 0:00:09]} 33. f4 {[%emt 0:00:33]} g5 {[%emt 0:00:45]} 34. g3 {[%emt 0:00:51]} a5 {[%emt 0:00:35]} 35. a3 {[%emt 0:00:56]} axb4 {[%emt 0:00:24]} 36. axb4 {[%emt 0:00:05]} h4 {[%emt 0:00:32]} 37. Kf2 {[%emt 0:00:55]} Ke6 38. Ke3 {[%emt 0:03:04]} Ra8 {[%emt 0:01:04]} 39. Kd4 {[%emt 0:02:42]} Ra4 {[%emt 0:00:35]} 40. Rb2 {[%emt 0:00:00]} hxg3 {[%emt 0:00:00]} 41. hxg3 {[%emt 0:01:42]} g4 {[%emt 0:06:08]} 42. f5+ {[%emt 0:03:16]} Kf7 {[%emt 0:08:33]} 43. Bd6 {[%emt 0:04:15]} Ra3 {[%emt 0:08:34]} 44. e5 {[%emt 0:03:21]} Bg5 {[%emt 0:07:51]} 45. e6+ {[%emt 0:04:37]} Kf6 {[%emt 0:00:40]} 46. Re2 {[%emt 0:01:47]} Kxf5 {[%emt 0:00:51]} 47. Re5+ {[%emt 0:00:41]} Kg6 {[%emt 0:01:20]} 48. e7 {[%emt 0:01:23]} Bxe7 {[%emt 0:00:30]} 49. Rxe7 {[%emt 0:00:06]} Kf5 {[%emt 0:00:32]} 50. Rc7 {[%emt 0:00:46]} Rb3 {[%emt 0:00:29]} 51. Rxc6 {[%emt 0:00:38]} Rxb4+ {[%emt 0:00:18]} 52. Kc3 {[%emt 0:00:06]} Rc4+ {[%emt 0:00:43]} 53. Kb3 {[%emt 0:00:07]} Ke6 {[%emt 0:00:25]} 54. Rb6 {[%emt 0:00:17]} Kd5 {[%emt 0:00:30]} 55. Rxb5 {[%emt 0:00:13]} Rc1 {[%emt 0:00:27]} 56. Kb4 {[%emt 0:00:39]} Kc6 {[%emt 0:00:38]} 57. Rb6+ {[%emt 0:00:11]} Kd5 {[%emt 0:00:28]} 58. Kb5 {[%emt 0:00:39]} Ra1 {[%emt 0:00:27]} 59. Rb7 {[%emt 0:00:36]} Rb1+ {[%emt 0:00:28]} 60. Ka6 {[%emt 0:00:10]} Rf1 {[%emt 0:00:34]} 61. Kb6 {[%emt 0:01:36]} Rf3 {[%emt 0:00:27]} 62. Rd7 {[%emt 0:00:34]} Ke6 {[%emt 0:00:23]} 63. Kc7 {[%emt 0:00:08]} Ra3 {[%emt 0:00:28]} 64. Re7+ {[%emt 0:00:31]} Kd5 {[%emt 0:00:09]} 65. Re5+ {[%emt 0:00:12]} Kd4 {[%emt 0:00:28]} 66. Rg5 {[%emt 0:00:52]} Kc4 {[%emt 0:00:22]} 67. c6 {[%emt 0:00:17]} Ra8 {[%emt 0:00:59]} 68. Kb7 {[%emt 0:00:28]} Rd8 {[%emt 0:00:13]} 69. c7 {[%emt 0:00:24]} 1-0

[Event "FIDE WYCC Girls U14 2023"]
[Site "Montesilvano"]
[Date "2023.11.20"]
[Round "7.35"]
[White "Viti, Greta"]
[Black "Petergova, Stella"]
[Result "0-1"]
[ECO "B31"]
[WhiteElo "1644"]
[BlackElo "1191"]
[Annotator "NA COMBH"]
[PlyCount "188"]
[EventDate "2023.11.13"]
[EventType "swiss"]
[EventCountry "ITA"]
[SourceTitle "playchess.com"]
[Source "ChessBase"]
[SourceQuality "1"]
[TimeControl "40/5400+30:1800+30"]

1. e4 {[%emt 0:00:02]} c5 {[%emt 0:00:05]} 2. Nf3 {[%emt 0:00:04]} Nc6 {[%emt 0:00:04]} 3. Bb5 {[%emt 0:00:07]} g6 {[%emt 0:00:06]} 4. Bxc6 {[%emt 0:00:23]} dxc6 {[%emt 0:00:07]} 5. d3 {[%emt 0:00:43]} Bg7 {[%emt 0:00:12]} 6. O-O {[%emt 0:02:12]} e5 {[%emt 0:03:05]} 7. Be3 {[%emt 0:04:10]} Qe7 {[%emt 0:00:25]} 8. Nbd2 {[%emt 0:03:39]} Nf6 {[%emt 0:01:05]} 9. Nc4 {[%emt 0:07:40]} Nd7 {[%emt 0:01:18]} 10. Qd2 {[%emt 0:10:23]} b6 {[%emt 0:06:20]} 11. Bh6 {[%emt 0:14:24]} O-O {[%emt 0:01:01]} 12. Bxg7 {[%emt 0:01:07]} Kxg7 {[%emt 0:00:07]} 13. Qc3 {[%emt 0:01:51]} f6 {[%emt 0:02:18]} 14. Nfd2 {[%emt 0:05:52]} Rf7 {[%emt 0:04:10]} 15. f4 {[%emt 0:02:54]} exf4 {[%emt 0:04:42]} 16. Rxf4 {[%emt 0:00:21]} Ba6 {[%emt 0:02:13]} 17. Raf1 {[%emt 0:01:38]} Bxc4 {[%emt 0:01:39]} 18. Nxc4 {[%emt 0:00:19]} Raf8 {[%emt 0:00:48]} 19. Qe1 {[%emt 0:06:47]} Ne5 {[%emt 0:01:18]} 20. Ne3 {[%emt 0:00:38]} Qe6 {[%emt 0:01:18]} 21. b3 {[%emt 0:01:14]} Qd7 {[%emt 0:02:17]} 22. Qg3 {[%emt 0:00:44]} Qe6 {[%emt 0:01:38]} 23. h4 {[%emt 0:02:38]} h5 {[%emt 0:01:46]} 24. Qe1 {[%emt 0:04:45]} Kh7 {[%emt 0:02:48]} 25. Qe2 {[%emt 0:01:08]} Kh6 {[%emt 0:02:01]} 26. Qd2 {[%emt 0:03:37]} g5 {[%emt 0:08:18]} 27. hxg5+ {[%emt 0:04:03]} fxg5 {[%emt 0:00:10]} 28. Rxf7 {[%emt 0:00:15]} Rxf7 {[%emt 0:00:30]} 29. Nf5+ {[%emt 0:00:25]} Kg6 {[%emt 0:00:37]} 30. Qc3 {[%emt 0:04:54]} Ng4 {[%emt 0:03:38]} 31. Qh8 {[%emt 0:06:02]} Rh7 {[%emt 0:00:48]} 32. Qf8 {[%emt 0:00:40]} Nf6 {[%emt 0:19:04]} 33. Qd6 Qxd6 {[%emt 0:01:25]} 34. Nxd6 {[%emt 0:03:40]} Ng4 {[%emt 0:01:53]} 35. Rf3 {[%emt 0:02:29]} h4 {[%emt 0:01:39]} 36. Nf5 {[%emt 0:02:29]} Ne5 {[%emt 0:01:06]} 37. Rf2 {[%emt 0:00:19]} Ng4 {[%emt 0:01:50]} 38. Re2 {[%emt 0:01:10]} Rf7 {[%emt 0:01:02]} 39. Kf1 {[%emt 0:02:36]} Nh6 {[%emt 0:00:29]} 40. Kg1 {[%emt 0:00:00]} Nxf5 {[%emt 0:00:00]} 41. exf5+ {[%emt 0:00:41]} Kxf5 {[%emt 0:01:52]} 42. Re8 {[%emt 0:00:29]} Kg4 {[%emt 0:02:27]} 43. Re6 {[%emt 0:03:18]} Kg3 {[%emt 0:00:49]} 44. Re3+ {[%emt 0:00:10]} Kg4 {[%emt 0:00:37]} 45. Re6 {[%emt 0:00:07]} h3 {[%emt 0:01:33]} 46. Re4+ {[%emt 0:01:27]} Rf4 {[%emt 0:01:05]} 47. gxh3+ {[%emt 0:01:38]} Kxh3 {[%emt 0:00:18]} 48. Re3+ {[%emt 0:00:13]} Kg4 {[%emt 0:01:21]} 49. Re7 {[%emt 0:00:16]} Kg3 {[%emt 0:12:11]} 50. Re3+ {[%emt 0:07:09]} Rf3 {[%emt 0:01:02]} 51. Re2 {[%emt 0:00:07]} g4 {[%emt 0:00:40]} 52. Rg2+ {[%emt 0:00:45]} Kh3 {[%emt 0:00:51]} 53. Rh2+ {[%emt 0:00:27]} Kg3 {[%emt 0:00:06]} 54. Re2 {[%emt 0:00:13]} Kf4 {[%emt 0:04:15]} 55. Re4+ {[%emt 0:00:27]} Kg3 {[%emt 0:00:45]} 56. Re2 {[%emt 0:00:05]} a5 {[%emt 0:07:29]} 57. Re6 {[%emt 0:04:59]} Rf2 {[%emt 0:01:21]} 58. Re3+ {[%emt 0:00:06]} Rf3 {[%emt 0:00:15]} 59. Re4 {[%emt 0:00:25]} Kh3 {[%emt 0:03:03]} 60. Re2 {[%emt 0:00:42]} g3 {[%emt 0:02:34]} 61. Re8 {[%emt 0:03:10]} Rf2 {[%emt 0:00:55]} 62. Rh8+ {[%emt 0:00:08]} Kg4 {[%emt 0:00:12]} 63. Rg8+ {[%emt 0:00:05]} Kf3 {[%emt 0:00:23]} 64. Rf8+ {[%emt 0:00:07]} Ke3 {[%emt 0:00:17]} 65. Rg8 {[%emt 0:01:46]} Rxc2 {[%emt 0:00:32]} 66. Rxg3+ {[%emt 0:00:07]} Kd4 {[%emt 0:00:07]} 67. a4 {[%emt 0:00:38]} Rb2 {[%emt 0:00:39]} 68. Kf1 {[%emt 0:00:19]} Rxb3 {[%emt 0:00:39]} 69. Ke2 {[%emt 0:00:07]} Rb2+ {[%emt 0:00:55]} 70. Kd1 {[%emt 0:00:07]} Ra2 {[%emt 0:00:48]} 71. Kc1 {[%emt 0:00:11]} Kc3 {[%emt 0:00:20]} 72. d4+ {[%emt 0:01:05]} Kxd4 {[%emt 0:00:16]} 73. Kb1 {[%emt 0:00:03]} Re2 {[%emt 0:01:17]} 74. Rb3 {[%emt 0:00:15]} Kd5 {[%emt 0:01:10]} 75. Rxb6 {[%emt 0:00:11]} Re4 {[%emt 0:00:12]} 76. Kc2 {[%emt 0:00:56]} Rb4 {[%emt 0:00:35]} 77. Ra6 {[%emt 0:00:10]} Rxa4 {[%emt 0:00:16]} 78. Ra8 {[%emt 0:00:42]} c4 {[%emt 0:00:16]} 79. Kb2 {[%emt 0:00:54]} Kc5 {[%emt 0:00:33]} 80. Rh8 {[%emt 0:00:14]} Rb4+ {[%emt 0:00:31]} 81. Kc3 {[%emt 0:00:37]} Rb3+ {[%emt 0:00:12]} 82. Kc2 {[%emt 0:00:10]} a4 {[%emt 0:00:13]} 83. Ra8 {[%emt 0:00:26]} a3 {[%emt 0:01:18]} 84. Ra7 {[%emt 0:00:27]} Rf3 {[%emt 0:01:23]} 85. Kb1 {[%emt 0:00:34]} Kb4 {[%emt 0:01:10]} 86. Rb7+ {[%emt 0:00:26]} Kc3 {[%emt 0:00:49]} 87. Ka2 {[%emt 0:00:52]} Kc2 {[%emt 0:00:48]} 88. Rb2+ {[%emt 0:00:26]} Kc1 {[%emt 0:01:10]} 89. Rh2 {[%emt 0:01:31]} Rd3 {[%emt 0:01:00]} 90. Rh4 {[%emt 0:01:07]} c3 {[%emt 0:01:24]} 91. Rb4 {[%emt 0:06:02]} c2 {[%emt 0:00:41]} 92. Rf4 {[%emt 0:02:38]} Kd2 {[%emt 0:00:44]} 93. Re4 {[%emt 0:01:07]} c1=Q {[%emt 0:01:59]} 94. Re2+ {[%emt 0:00:01]} Kc3 {[%emt 0:00:07]} 0-1

[Event "FIDE WYCC Girls U14 2023"]
[Site "Montesilvano"]
[Date "2023.11.21"]
[Round "8.1"]
[White "Shukhman, Anna"]
[Black "Nurgaliyeva, Zarina"]
[Result "1-0"]
[ECO "C45"]
[WhiteElo "2263"]
[BlackElo "2104"]
[Annotator "RC"]
[PlyCount "75"]
[EventDate "2023.11.13"]
[EventType "swiss"]
[EventCountry "ITA"]
[SourceTitle "playchess.com"]
[Source "ChessBase"]
[SourceQuality "1"]
[TimeControl "40/5400+30:1800+30"]

1. e4 {[%emt 0:00:03]} e5 {[%emt 0:00:05]} 2. Nf3 {[%emt 0:00:02]} Nc6 {[%emt 0:00:06]} 3. d4 {[%emt 0:00:03]} exd4 {[%emt 0:00:06]} 4. Nxd4 {[%emt 0:00:02]} Bc5 {[%emt 0:00:10]} 5. Be3 {[%emt 0:00:04]} Qf6 {[%emt 0:00:43]} 6. c3 {[%emt 0:00:05]} Nge7 {[%emt 0:00:35]} 7. Bb5 {[%emt 0:00:05]} O-O {[%emt 0:09:46]} 8. O-O {[%emt 0:00:04]} Bb6 {[%emt 0:04:34]} 9. a4 {[%emt 0:00:04]} Nxd4 {[%emt 0:09:18]} 10. cxd4 {[%emt 0:11:12]} c6 {[%emt 0:02:32]} 11. a5 {[%emt 0:09:13]} Bc7 {[%emt 0:06:29]} 12. Bd3 {[%emt 0:00:18]} d5 {[%emt 0:02:42]} 13. Nc3 {[%emt 0:00:39]} dxe4 {[%emt 0:13:28]} 14. Nxe4 {[%emt 0:03:54]} Qg6 {[%emt 0:01:52]} 15. Bg5 {[%emt 0:20:53]} Nf5 {[%emt 0:06:42]} 16. Ra4 {[%emt 0:14:57]} Be6 {[%emt 0:17:57]} 17. h4 {[%emt 0:07:31]} f6 {[%emt 0:03:50]} 18. h5 {[%emt 0:00:07]} Qf7 {[%emt 0:00:45]} 19. Nc5 {[%emt 0:00:04]} Bd5 {[%emt 0:02:53]} 20. Bd2 {[%emt 0:01:34]} Nd6 {[%emt 0:03:41]} 21. Bf4 {[%emt 0:02:53]} Rad8 {[%emt 0:06:05]} 22. Ra1 {[%emt 0:02:37]} f5 {[%emt 0:03:39]} 23. Re1 {[%emt 0:01:28]} Qf6 {[%emt 0:00:57]} 24. Nxb7 {[%emt 0:01:52]} Nxb7 {[%emt 0:01:25]} 25. Bxc7 {[%emt 0:00:03]} Qg5 {[%emt 0:01:04]} 26. Bf1 {[%emt 0:01:27]} Rd7 {[%emt 0:00:19]} 27. Be5 {[%emt 0:00:07]} f4 {[%emt 0:00:21]} 28. f3 {[%emt 0:00:05]} Qxh5 {[%emt 0:00:36]} 29. Qc1 {[%emt 0:08:46]} Qh4 {[%emt 0:01:08]} 30. Bc4 {[%emt 0:00:23]} Nd8 {[%emt 0:00:28]} 31. Bxd5+ {[%emt 0:00:56]} cxd5 {[%emt 0:00:10]} 32. Qc8 {[%emt 0:00:22]} Re7 {[%emt 0:00:58]} 33. Qc5 {[%emt 0:02:20]} Rd7 {[%emt 0:00:58]} 34. Bd6 {[%emt 0:01:19]} Nb7 {[%emt 0:00:34]} 35. Qxd5+ {[%emt 0:00:07]} Kh8 {[%emt 0:00:08]} 36. Qf5 {[%emt 0:00:23]} Rfd8 {[%emt 0:00:51]} 37. Qxd7 {[%emt 0:00:09]} Nxd6 {[%emt 0:00:03]} 38. Qxd6 {[%emt 0:00:08]} 1-0

[Event "FIDE WYCC Girls U14 2023"]
[Site "Montesilvano"]
[Date "2023.11.21"]
[Round "8.2"]
[White "Mgeladze, Kesaria"]
[Black "Piddubna, Bozhena"]
[Result "1-0"]
[ECO "C27"]
[WhiteElo "2065"]
[BlackElo "2081"]
[Annotator "NA RC"]
[PlyCount "111"]
[EventDate "2023.11.13"]
[EventType "swiss"]
[EventCountry "ITA"]
[SourceTitle "playchess.com"]
[Source "ChessBase"]
[SourceQuality "1"]
[TimeControl "40/5400+30:1800+30"]

1. e4 {[%emt 0:00:03]} e5 {[%emt 0:00:07]} 2. Nc3 {[%emt 0:00:07]} Nf6 {[%emt 0:00:09]} 3. Bc4 {[%emt 0:00:17]} Nxe4 {[%emt 0:01:07]} 4. Qh5 {[%emt 0:00:13]} Nd6 {[%emt 0:00:29]} 5. Qxe5+ {[%emt 0:00:08]} Qe7 {[%emt 0:01:17]} 6. Qxe7+ {[%emt 0:00:10]} Bxe7 {[%emt 0:00:06]} 7. Be2 {[%emt 0:00:21]} O-O {[%emt 0:02:36]} 8. Nf3 {[%emt 0:01:45]} b6 {[%emt 0:04:45]} 9. d4 {[%emt 0:01:15]} Bb7 {[%emt 0:00:16]} 10. Bf4 {[%emt 0:00:14]} Ne4 {[%emt 0:02:25]} 11. Nxe4 {[%emt 0:03:46]} Bxe4 {[%emt 0:00:10]} 12. O-O-O {[%emt 0:00:49]} Nc6 {[%emt 0:02:08]} 13. Rhe1 {[%emt 0:13:28]} Nb4 {[%emt 0:20:37]} 14. Bb5 {[%emt 0:28:52]} f5 {[%emt 0:06:07]} 15. c3 {[%emt 0:04:41]} Nxa2+ {[%emt 0:14:13]} 16. Kd2 {[%emt 0:00:04]} Nb4 {[%emt 0:00:06]} 17. cxb4 {[%emt 0:04:30]} Bxb4+ {[%emt 0:00:06]} 18. Ke2 {[%emt 0:03:05]} c6 {[%emt 0:05:54]} 19. Bc4+ {[%emt 0:04:32]} d5 {[%emt 0:00:11]} 20. Ba2 {[%emt 0:00:04]} Bxf3+ {[%emt 0:08:37]} 21. Kxf3 {[%emt 0:00:11]} Bxe1 {[%emt 0:00:05]} 22. Rxe1 {[%emt 0:00:02]} Rfe8 {[%emt 0:04:19]} 23. Rc1 {[%emt 0:00:35]} Rac8 {[%emt 0:01:14]} 24. b4 {[%emt 0:01:25]} a6 {[%emt 0:05:16]} 25. Rc3 {[%emt 0:02:19]} Kf7 {[%emt 0:04:24]} 26. Ra3 {[%emt 0:06:55]} Ke6 {[%emt 0:00:28]} 27. Bb1 {[%emt 0:02:04]} Ra8 {[%emt 0:05:54]} 28. Re3+ {[%emt 0:00:46]} Kf7 {[%emt 0:00:59]} 29. Rc3 {[%emt 0:00:39]} Re6 {[%emt 0:00:35]} 30. Bxf5 {[%emt 0:04:21]} Rf6 {[%emt 0:00:06]} 31. Kg4 {[%emt 0:00:23]} Re8 {[%emt 0:02:49]} 32. Be5 {[%emt 0:01:49]} h5+ {[%emt 0:03:46]} 33. Kg5 {[%emt 0:01:31]} Rh6 {[%emt 0:00:05]} 34. Bd7 {[%emt 0:02:49]} Rg6+ {[%emt 0:00:39]} 35. Kh4 {[%emt 0:00:21]} Rxe5 {[%emt 0:04:23]} 36. dxe5 {[%emt 0:00:10]} Rxg2 {[%emt 0:00:03]} 37. Rf3+ {[%emt 0:02:24]} Ke7 {[%emt 0:00:33]} 38. Kh3 {[%emt 0:01:15]} Rg6 {[%emt 0:00:59]} 39. e6 {[%emt 0:00:43]} d4 {[%emt 0:00:48]} 40. Rf7+ {[%emt 0:00:00]} Kd6 {[%emt 0:00:00]} 41. Bc8 {[%emt 0:03:28]} Rxe6 {[%emt 0:11:54]} 42. Bxe6 {[%emt 0:00:23]} Kxe6 {[%emt 0:00:04]} 43. Rxg7 {[%emt 0:00:09]} c5 {[%emt 0:00:03]} 44. bxc5 {[%emt 0:00:12]} bxc5 {[%emt 0:00:02]} 45. Kg3 {[%emt 0:00:38]} Kd5 {[%emt 0:00:19]} 46. Kf3 {[%emt 0:00:41]} Kc4 {[%emt 0:00:04]} 47. Ke2 {[%emt 0:00:17]} Kc3 {[%emt 0:00:18]} 48. f4 {[%emt 0:00:50]} c4 {[%emt 0:01:29]} 49. Kd1 {[%emt 0:00:20]} a5 {[%emt 0:00:36]} 50. f5 {[%emt 0:00:04]} a4 {[%emt 0:00:05]} 51. f6 {[%emt 0:00:06]} a3 {[%emt 0:00:06]} 52. Ra7 {[%emt 0:00:05]} Kb2 {[%emt 0:01:02]} 53. f7 {[%emt 0:00:10]} c3 {[%emt 0:00:19]} 54. Rb7+ {[%emt 0:00:02]} Ka1 {[%emt 0:00:35]} 55. f8=Q {[%emt 0:00:08]} a2 {[%emt 0:00:09]} 56. Qa3 {[%emt 0:00:04]} 1-0